[Event "Late-Titled-Tuesday-Blitz-March-26-2024"]
[Site "Chess.com"]
[Date "2024.03.26"]
[Round "2"]
[White "kacperkarwowski"]
[Black "HanSchut"]
[Result "1-0"]
[WhiteElo "2503"]
[BlackElo "2277"]
[TimeControl "180+1"]
[EndTime "14:19:45 PDT"]
[Termination "kacperkarwowski won by resignation"]

1. d4 {[%clk 0:03:00.9]} 1... Nf6 {[%clk 0:02:59.3]} 2. c4 {[%clk 0:03:00.9]}
2... g6 {[%clk 0:02:59.5]} 3. Nc3 {[%clk 0:03:00.9]} 3... d5 {[%clk 0:03:00.2]}
4. Nf3 {[%clk 0:02:56.7]} 4... Bg7 {[%clk 0:02:59.8]} 5. e3 {[%clk 0:02:56]}
5... O-O {[%clk 0:02:58.9]} 6. b3 {[%clk 0:02:54.7]} 6... c5 {[%clk 0:02:58]} 7.
Bb2 {[%clk 0:02:54.6]} 7... cxd4 {[%clk 0:02:57.3]} 8. Nxd4 {[%clk 0:02:54.7]}
8... Qa5 {[%clk 0:02:33.3]} 9. Qd2 {[%clk 0:02:45.5]} 9... dxc4 {[%clk 0:02:26]}
10. Bxc4 {[%clk 0:02:46.4]} 10... Rd8 {[%clk 0:02:24.6]} 11. Ne4 {[%clk
0:02:35.9]} 11... Qxd2+ {[%clk 0:02:08.9]} 12. Nxd2 {[%clk 0:02:36.8]} 12... a6
{[%clk 0:01:33.1]} 13. Rd1 {[%clk 0:02:23.1]} 13... Bd7 {[%clk 0:01:32.4]} 14.
O-O {[%clk 0:02:21.5]} 14... Nc6 {[%clk 0:01:32.7]} 15. Nxc6 {[%clk 0:02:20.7]}
15... Bxc6 {[%clk 0:01:33.6]} 16. Nf3 {[%clk 0:02:16.6]} 16... Bxf3 {[%clk
0:01:26.2]} 17. gxf3 {[%clk 0:02:17.5]} 17... e6 {[%clk 0:01:22.8]} 18. a4
{[%clk 0:01:57.1]} 18... Kf8 {[%clk 0:01:14.7]} 19. Ba3+ {[%clk 0:01:50.2]}
19... Ke8 {[%clk 0:01:08.5]} 20. Rfe1 {[%clk 0:01:49.1]} 20... Nd7 {[%clk
0:00:59.7]} 21. Be2 {[%clk 0:01:31.8]} 21... Nb6 {[%clk 0:00:53.5]} 22. Kf1
{[%clk 0:01:11.8]} 22... Nd5 {[%clk 0:00:52.1]} 23. Rc1 {[%clk 0:00:59.9]} 23...
Rac8 {[%clk 0:00:45.3]} 24. Bc4 {[%clk 0:00:54.5]} 24... Nb6 {[%clk 0:00:32.5]}
25. Ke2 {[%clk 0:00:45]} 25... Nxc4 {[%clk 0:00:32.3]} 26. Rxc4 {[%clk
0:00:45.9]} 26... Rxc4 {[%clk 0:00:31.8]} 27. bxc4 {[%clk 0:00:46.8]} 27... Bc3
{[%clk 0:00:26.6]} 28. Rb1 {[%clk 0:00:13.3]} 28... Rd2+ {[%clk 0:00:25.1]} 29.
Kf1 {[%clk 0:00:13.9]} 29... Ra2 {[%clk 0:00:21.5]} 30. Bd6 {[%clk 0:00:14.5]}
30... Rxa4 {[%clk 0:00:19.8]} 31. Rxb7 {[%clk 0:00:15]} 31... Rxc4 {[%clk
0:00:20.3]} 32. Re7+ {[%clk 0:00:15.3]} 32... Kd8 {[%clk 0:00:19.9]} 33. Rxf7
{[%clk 0:00:15.8]} 33... a5 {[%clk 0:00:20.2]} 34. Rxh7 {[%clk 0:00:15.7]} 34...
Bb4 {[%clk 0:00:20.3]} 35. Bxb4 {[%clk 0:00:10.8]} 35... Rxb4 {[%clk 0:00:20.3]}
36. Rg7 {[%clk 0:00:05]} 36... a4 {[%clk 0:00:19]} 37. Rxg6 {[%clk 0:00:05.5]}
37... a3 {[%clk 0:00:19]} 38. Rg8+ {[%clk 0:00:06.2]} 38... Kc7 {[%clk
0:00:18.8]} 39. Ra8 {[%clk 0:00:07.1]} 39... Rb1+ {[%clk 0:00:18.7]} 40. Kg2
{[%clk 0:00:07]} 40... Ra1 {[%clk 0:00:19.6]} 41. h4 {[%clk 0:00:07.3]} 41...
Kd6 {[%clk 0:00:20.5]} 42. h5 {[%clk 0:00:07.8]} 42... Ke7 {[%clk 0:00:21.4]}
43. f4 {[%clk 0:00:07.4]} 43... Kf6 {[%clk 0:00:21.8]} 44. Kf3 {[%clk 0:00:08]}
44... Kg7 {[%clk 0:00:21.8]} 45. Ra5 {[%clk 0:00:08.7]} 45... Kh6 {[%clk
0:00:21.6]} 46. Ke4 {[%clk 0:00:09.2]} 46... a2 {[%clk 0:00:21.4]} 47. f3 {[%clk
0:00:09.7]} 47... Kg7 {[%clk 0:00:21.5]} 48. Ke5 {[%clk 0:00:09.9]} 48... Re1
{[%clk 0:00:19.8]} 49. Rxa2 {[%clk 0:00:10.2]} 49... Rxe3+ {[%clk 0:00:20.6]}
50. Kd6 {[%clk 0:00:10.8]} 50... Kh6 {[%clk 0:00:20.9]} 51. Ra5 {[%clk
0:00:10.7]} 51... Rxf3 {[%clk 0:00:20.5]} 52. Ke5 {[%clk 0:00:09.9]} 52... Re3+
{[%clk 0:00:20.5]} 53. Kf6 {[%clk 0:00:09.6]} 53... Re4 {[%clk 0:00:20.3]} 54.
Re5 {[%clk 0:00:04.1]} 54... Rxf4+ {[%clk 0:00:20]} 55. Kxe6 {[%clk 0:00:04.6]}
55... Rh4 {[%clk 0:00:19.8]} 56. Kf6 {[%clk 0:00:04.7]} 56... Rxh5 {[%clk
0:00:20.2]} 57. Re8 {[%clk 0:00:05.3]} 57... Kh7 {[%clk 0:00:18.3]} 58. Re7+
{[%clk 0:00:05.8]} 58... Kh8 {[%clk 0:00:18.3]} 59. Kg6 {[%clk 0:00:06.2]} 1-0

[Event "Late-Titled-Tuesday-Blitz-March-26-2024"]
[Site "Chess.com"]
[Date "2024.03.26"]
[Round "2"]
[White "campochess"]
[Black "Koalaskakistis"]
[Result "0-1"]
[WhiteElo "2162"]
[BlackElo "2449"]
[TimeControl "180+1"]
[EndTime "14:19:45 PDT"]
[Termination "Koalaskakistis won on time"]

1. Nf3 {[%clk 0:02:59.8]} 1... Nf6 {[%clk 0:02:53.1]} 2. b3 {[%clk 0:02:57.5]}
2... c5 {[%clk 0:02:49.1]} 3. Bb2 {[%clk 0:02:56.7]} 3... Nc6 {[%clk 0:02:49.4]}
4. g3 {[%clk 0:02:53]} 4... d6 {[%clk 0:02:47.6]} 5. Bg2 {[%clk 0:02:52.9]} 5...
e5 {[%clk 0:02:47.9]} 6. d3 {[%clk 0:02:51.6]} 6... g6 {[%clk 0:02:47.2]} 7. O-O
{[%clk 0:02:51.3]} 7... Bg7 {[%clk 0:02:47.7]} 8. Nbd2 {[%clk 0:02:49.2]} 8...
O-O {[%clk 0:02:48.2]} 9. a4 {[%clk 0:02:49]} 9... h6 {[%clk 0:02:45.7]} 10. Nc4
{[%clk 0:02:48.7]} 10... Be6 {[%clk 0:02:46]} 11. Nfd2 {[%clk 0:02:44.1]} 11...
Ne8 {[%clk 0:02:39.2]} 12. e3 {[%clk 0:02:37.9]} 12... d5 {[%clk 0:02:37.7]} 13.
Na3 {[%clk 0:02:33.5]} 13... a6 {[%clk 0:02:30.8]} 14. c4 {[%clk 0:02:30.3]}
14... Nc7 {[%clk 0:02:30.6]} 15. Qe2 {[%clk 0:02:18.4]} 15... Nb4 {[%clk
0:02:28.3]} 16. Rfd1 {[%clk 0:02:04.1]} 16... Qd7 {[%clk 0:02:24.7]} 17. cxd5
{[%clk 0:02:00.2]} 17... Ncxd5 {[%clk 0:02:23.8]} 18. Ndc4 {[%clk 0:01:59.6]}
18... Rfe8 {[%clk 0:01:57]} 19. e4 {[%clk 0:01:49.9]} 19... Ne7 {[%clk
0:01:43.8]} 20. Nb6 {[%clk 0:01:48.9]} 20... Qc7 {[%clk 0:01:40.8]} 21. Nxa8
{[%clk 0:01:48.6]} 21... Rxa8 {[%clk 0:01:41.7]} 22. Nc4 {[%clk 0:01:48.1]}
22... Nec6 {[%clk 0:01:40.9]} 23. Kh1 {[%clk 0:01:43.4]} 23... Rd8 {[%clk
0:01:40.4]} 24. Rac1 {[%clk 0:01:37.3]} 24... Qd7 {[%clk 0:01:40.7]} 25. Bf1
{[%clk 0:01:29.1]} 25... Bg4 {[%clk 0:01:36.9]} 26. f3 {[%clk 0:01:28.4]} 26...
Be6 {[%clk 0:01:36.1]} 27. Qf2 {[%clk 0:01:24.8]} 27... Qe7 {[%clk 0:01:30.5]}
28. f4 {[%clk 0:01:18.8]} 28... Bg4 {[%clk 0:01:17]} 29. Rd2 {[%clk 0:01:15.6]}
29... exf4 {[%clk 0:01:13.6]} 30. gxf4 {[%clk 0:01:12]} 30... Nd4 {[%clk
0:01:04.7]} 31. e5 {[%clk 0:01:03.2]} 31... Nxb3 {[%clk 0:01:01.5]} 32. Nd6
{[%clk 0:00:52.3]} 32... Nxd2 {[%clk 0:00:57.6]} 33. Qxd2 {[%clk 0:00:48.7]}
33... Bf3+ {[%clk 0:00:50.8]} 34. Kg1 {[%clk 0:00:48.2]} 34... b6 {[%clk
0:00:17.4]} 35. a5 {[%clk 0:00:45.4]} 35... Qa7 {[%clk 0:00:13.9]} 36. axb6
{[%clk 0:00:42.6]} 36... Qxb6 {[%clk 0:00:14]} 37. Nc4 {[%clk 0:00:42.3]} 37...
Qe6 {[%clk 0:00:12.4]} 38. Qe3 {[%clk 0:00:41.9]} 38... Qg4+ {[%clk 0:00:12.5]}
39. Kf2 {[%clk 0:00:37.5]} 39... Nd5 {[%clk 0:00:13.4]} 40. Qxf3 {[%clk
0:00:28.5]} 40... Qh4+ {[%clk 0:00:10.3]} 41. Qg3 {[%clk 0:00:27.1]} 41... Qe7
{[%clk 0:00:10.5]} 42. Nd6 {[%clk 0:00:20.7]} 42... Qa7 {[%clk 0:00:05.8]} 43.
Kg1 {[%clk 0:00:16.9]} 43... Rxd6 {[%clk 0:00:05.3]} 44. exd6 {[%clk 0:00:15.7]}
44... Bxb2 {[%clk 0:00:06.2]} 45. Re1 {[%clk 0:00:13.3]} 45... Bd4+ {[%clk
0:00:06.2]} 46. Kh1 {[%clk 0:00:11.6]} 46... Qd7 {[%clk 0:00:05.7]} 47. f5
{[%clk 0:00:09.1]} 47... g5 {[%clk 0:00:04.8]} 48. Bh3 {[%clk 0:00:08.5]} 48...
Nf4 {[%clk 0:00:05.5]} 49. Bg4 {[%clk 0:00:07.2]} 49... Qxd6 {[%clk 0:00:04.5]}
50. h4 {[%clk 0:00:06.6]} 50... f6 {[%clk 0:00:03.8]} 51. hxg5 {[%clk
0:00:05.5]} 51... hxg5 {[%clk 0:00:04.3]} 52. Re4 {[%clk 0:00:05]} 52... Qb6
{[%clk 0:00:02.3]} 53. Bf3 {[%clk 0:00:01.8]} 53... Qb1+ {[%clk 0:00:02.3]} 54.
Kh2 {[%clk 0:00:02.1]} 54... Qb2+ {[%clk 0:00:02.7]} 0-1

[Event "Late-Titled-Tuesday-Blitz-March-26-2024"]
[Site "Chess.com"]
[Date "2024.03.26"]
[Round "2"]
[White "AnthonyWirig"]
[Black "YegoryoCh"]
[Result "1-0"]
[WhiteElo "2821"]
[BlackElo "2545"]
[TimeControl "180+1"]
[EndTime "14:19:50 PDT"]
[Termination "AnthonyWirig won by resignation"]

1. d4 {[%clk 0:03:00.9]} 1... d5 {[%clk 0:03:00.3]} 2. Nf3 {[%clk 0:03:00]} 2...
Nf6 {[%clk 0:03:00.4]} 3. c4 {[%clk 0:03:00]} 3... e6 {[%clk 0:02:59.2]} 4. e3
{[%clk 0:02:59.2]} 4... b6 {[%clk 0:02:57.5]} 5. Nc3 {[%clk 0:02:56.8]} 5... Bb7
{[%clk 0:02:57.1]} 6. Bd3 {[%clk 0:02:55.8]} 6... Nbd7 {[%clk 0:02:54.4]} 7.
cxd5 {[%clk 0:02:55.6]} 7... exd5 {[%clk 0:02:55.3]} 8. O-O {[%clk 0:02:52.2]}
8... a6 {[%clk 0:02:55.5]} 9. Ne5 {[%clk 0:02:51.5]} 9... Bd6 {[%clk 0:02:54.9]}
10. f4 {[%clk 0:02:51.3]} 10... Ne4 {[%clk 0:02:50.6]} 11. Qb3 {[%clk
0:02:24.5]} 11... Nxc3 {[%clk 0:02:30]} 12. bxc3 {[%clk 0:02:24]} 12... O-O
{[%clk 0:02:30.6]} 13. c4 {[%clk 0:02:06.8]} 13... Bxe5 {[%clk 0:02:24.2]} 14.
fxe5 {[%clk 0:02:03.7]} 14... c5 {[%clk 0:02:23.9]} 15. cxd5 {[%clk 0:01:57.3]}
15... b5 {[%clk 0:02:10]} 16. Qc2 {[%clk 0:01:39.4]} 16... Bxd5 {[%clk 0:02:00]}
17. Bxh7+ {[%clk 0:01:38.7]} 17... Kh8 {[%clk 0:01:59.2]} 18. Be4 {[%clk
0:01:28.7]} 18... Bxe4 {[%clk 0:01:11.1]} 19. Qxe4 {[%clk 0:01:29.6]} 19... Kg8
{[%clk 0:01:11.5]} 20. Bb2 {[%clk 0:01:03]} 20... Re8 {[%clk 0:01:06.6]} 21. Rf3
{[%clk 0:00:42.5]} 21... Nf8 {[%clk 0:00:40.5]} 22. d5 {[%clk 0:00:35]} 22...
Ra7 {[%clk 0:00:39.7]} 23. a4 {[%clk 0:00:23.7]} 23... Rae7 {[%clk 0:00:38.1]}
24. axb5 {[%clk 0:00:22.9]} 24... axb5 {[%clk 0:00:39]} 25. Rd1 {[%clk
0:00:20.7]} 25... Ng6 {[%clk 0:00:34.1]} 26. e6 {[%clk 0:00:19.5]} 26... Nf8
{[%clk 0:00:34.5]} 27. Qg4 {[%clk 0:00:16.9]} 27... fxe6 {[%clk 0:00:32.6]} 28.
d6 {[%clk 0:00:16]} 28... Rd7 {[%clk 0:00:30.1]} 29. Be5 {[%clk 0:00:16.1]}
29... Nh7 {[%clk 0:00:19.2]} 30. Rdf1 {[%clk 0:00:14.4]} 30... Rf8 {[%clk
0:00:17.8]} 31. Qxe6+ {[%clk 0:00:11.6]} 31... Kh8 {[%clk 0:00:17.3]} 32. Qh6
{[%clk 0:00:06.2]} 32... Rxf3 {[%clk 0:00:16]} 33. Rxf3 {[%clk 0:00:07.1]} 33...
c4 {[%clk 0:00:11.7]} 34. h4 {[%clk 0:00:05.1]} 34... b4 {[%clk 0:00:10.6]} 35.
Qe6 {[%clk 0:00:04.1]} 35... c3 {[%clk 0:00:10]} 36. h5 {[%clk 0:00:04.2]} 36...
c2 {[%clk 0:00:09.7]} 37. Qc4 {[%clk 0:00:04.4]} 37... Qe8 {[%clk 0:00:02.2]}
38. Bb2 {[%clk 0:00:01.8]} 38... Rxd6 {[%clk 0:00:01.5]} 39. h6 {[%clk
0:00:01.9]} 39... Re6 {[%clk 0:00:01.9]} 40. Kf2 {[%clk 0:00:02.7]} 40... Kg8
{[%clk 0:00:02.3]} 41. hxg7 {[%clk 0:00:03.6]} 41... Qd7 {[%clk 0:00:01.5]} 42.
Qb3 {[%clk 0:00:04]} 42... Qe7 {[%clk 0:00:01.4]} 43. Rf8+ {[%clk 0:00:04.9]}
43... Nxf8 {[%clk 0:00:01.4]} 44. gxf8=Q+ {[%clk 0:00:05.8]} 44... Kxf8 {[%clk
0:00:02.3]} 45. Ke2 {[%clk 0:00:05.9]} 45... Qf7 {[%clk 0:00:03.2]} 46. Qxc2
{[%clk 0:00:05.9]} 46... Rc6 {[%clk 0:00:04.1]} 47. Qc3 {[%clk 0:00:06.3]} 47...
Rc5 {[%clk 0:00:04.3]} 48. Qxc5+ {[%clk 0:00:05.9]} 48... Kg8 {[%clk 0:00:03]}
49. Qxb4 {[%clk 0:00:06.2]} 49... Qh5+ {[%clk 0:00:02.8]} 50. Kd2 {[%clk
0:00:06.4]} 50... Qd5+ {[%clk 0:00:02.8]} 51. Qd4 {[%clk 0:00:07.3]} 51... Qxg2+
{[%clk 0:00:02.9]} 52. Kd3 {[%clk 0:00:07.7]} 52... Qg6+ {[%clk 0:00:02.5]} 53.
Kc4 {[%clk 0:00:08.2]} 53... Qa6+ {[%clk 0:00:03]} 54. Kb3 {[%clk 0:00:08.5]}
54... Qb5+ {[%clk 0:00:03.2]} 55. Kc2 {[%clk 0:00:09.1]} 55... Qe2+ {[%clk
0:00:03]} 56. Qd2 {[%clk 0:00:09.7]} 56... Qc4+ {[%clk 0:00:03.4]} 57. Qc3
{[%clk 0:00:10.5]} 57... Qe4+ {[%clk 0:00:03.9]} 58. Kb3 {[%clk 0:00:11.4]}
58... Qb7+ {[%clk 0:00:03.9]} 59. Ka3 {[%clk 0:00:12]} 59... Qa6+ {[%clk
0:00:04.2]} 60. Kb4 {[%clk 0:00:12.2]} 60... Qb5+ {[%clk 0:00:04.8]} 61. Kxb5
{[%clk 0:00:12.4]} 1-0

[Event "Late-Titled-Tuesday-Blitz-March-26-2024"]
[Site "Chess.com"]
[Date "2024.03.26"]
[Round "2"]
[White "FMYiLiu"]
[Black "Felix-Rose"]
[Result "1-0"]
[WhiteElo "2487"]
[BlackElo "2242"]
[TimeControl "180+1"]
[EndTime "14:19:50 PDT"]
[Termination "FMYiLiu won by checkmate"]

1. d4 {[%clk 0:03:00.9]} 1... d5 {[%clk 0:02:58.9]} 2. Nf3 {[%clk 0:03:00.7]}
2... Nf6 {[%clk 0:02:59]} 3. c3 {[%clk 0:03:00.4]} 3... e6 {[%clk 0:02:56.7]} 4.
Bf4 {[%clk 0:03:00.5]} 4... Bd6 {[%clk 0:02:57.1]} 5. e3 {[%clk 0:03:00.8]} 5...
O-O {[%clk 0:02:57.2]} 6. Nbd2 {[%clk 0:02:56.5]} 6... b6 {[%clk 0:02:57.3]} 7.
h4 {[%clk 0:02:43.8]} 7... c5 {[%clk 0:02:56.5]} 8. h5 {[%clk 0:02:35]} 8...
Bxf4 {[%clk 0:02:52.6]} 9. exf4 {[%clk 0:02:34.9]} 9... cxd4 {[%clk 0:02:53.1]}
10. Nxd4 {[%clk 0:02:34.7]} 10... Re8 {[%clk 0:02:41.7]} 11. h6 {[%clk
0:02:30.3]} 11... e5 {[%clk 0:02:31.5]} 12. fxe5 {[%clk 0:02:28.9]} 12... Rxe5+
{[%clk 0:02:31.5]} 13. Be2 {[%clk 0:02:29.2]} 13... Ba6 {[%clk 0:02:11.4]} 14.
N2f3 {[%clk 0:02:29.3]} 14... Bxe2 {[%clk 0:02:05.4]} 15. Nxe2 {[%clk
0:02:27.6]} 15... Re4 {[%clk 0:02:03.7]} 16. hxg7 {[%clk 0:02:22.4]} 16... Nc6
{[%clk 0:01:59.1]} 17. Kf1 {[%clk 0:02:16]} 17... Qe7 {[%clk 0:01:50.2]} 18. Qd3
{[%clk 0:02:00]} 18... Re8 {[%clk 0:01:44.9]} 19. Ng3 {[%clk 0:01:58.9]} 19...
Ne5 {[%clk 0:01:23.7]} 20. Nxe5 {[%clk 0:01:44.1]} 20... Rxe5 {[%clk 0:01:23.3]}
21. f3 {[%clk 0:01:07.3]} 21... Re1+ {[%clk 0:00:23]} 22. Kf2 {[%clk 0:01:06.4]}
22... Ng4+ {[%clk 0:00:09.5]} 23. fxg4 {[%clk 0:01:04.7]} 23... Qf6+ {[%clk
0:00:07.8]} 24. Nf5 {[%clk 0:01:02.2]} 24... R8e2+ {[%clk 0:00:07.4]} 25. Qxe2
{[%clk 0:01:02.2]} 25... Rxe2+ {[%clk 0:00:07.8]} 26. Kxe2 {[%clk 0:01:03.1]}
26... Qe5+ {[%clk 0:00:07.6]} 27. Kf3 {[%clk 0:00:44.1]} 27... Qe4+ {[%clk
0:00:07.6]} 28. Kf2 {[%clk 0:00:43.2]} 28... Qxg4 {[%clk 0:00:07]} 29. Ne3
{[%clk 0:00:40]} 29... Qxg7 {[%clk 0:00:07.1]} 30. Rh3 {[%clk 0:00:34.6]} 30...
Qf6+ {[%clk 0:00:06.9]} 31. Ke2 {[%clk 0:00:33]} 31... d4 {[%clk 0:00:07.1]} 32.
Rf1 {[%clk 0:00:26.2]} 32... Qe6 {[%clk 0:00:05.1]} 33. cxd4 {[%clk 0:00:23.7]}
33... Qxa2 {[%clk 0:00:05.5]} 34. Rhf3 {[%clk 0:00:15.7]} 34... Qxb2+ {[%clk
0:00:05.3]} 35. Kd3 {[%clk 0:00:16.4]} 35... b5 {[%clk 0:00:04]} 36. Rxf7 {[%clk
0:00:14.3]} 36... Qb3+ {[%clk 0:00:04.7]} 37. Ke4 {[%clk 0:00:13.4]} 37... Qe6+
{[%clk 0:00:04.8]} 38. Kd3 {[%clk 0:00:13.8]} 38... Qb3+ {[%clk 0:00:05]} 39.
Kd2 {[%clk 0:00:12.8]} 39... a5 {[%clk 0:00:01.9]} 40. Rf8+ {[%clk 0:00:11.7]}
40... Kg7 {[%clk 0:00:02.7]} 41. R1f7+ {[%clk 0:00:10.9]} 41... Kg6 {[%clk
0:00:02.5]} 42. Rf6+ {[%clk 0:00:11.2]} 42... Kg5 {[%clk 0:00:01.9]} 43. Rf5+
{[%clk 0:00:10.6]} 43... Kh4 {[%clk 0:00:02.4]} 44. Rf4+ {[%clk 0:00:08.6]}
44... Kg3 {[%clk 0:00:02.8]} 45. Rf3+ {[%clk 0:00:08.7]} 45... Kh2 {[%clk
0:00:02.9]} 46. Ng4+ {[%clk 0:00:07.3]} 46... Kxg2 {[%clk 0:00:02.7]} 47. Rxb3
{[%clk 0:00:08.2]} 47... b4 {[%clk 0:00:02.1]} 48. Rf2+ {[%clk 0:00:07.7]} 48...
Kg1 {[%clk 0:00:01.8]} 49. Rb1# {[%clk 0:00:08.6]} 1-0

[Event "Late-Titled-Tuesday-Blitz-March-26-2024"]
[Site "Chess.com"]
[Date "2024.03.26"]
[Round "2"]
[White "Practical-Play"]
[Black "Navyblue1"]
[Result "1/2-1/2"]
[WhiteElo "2472"]
[BlackElo "2247"]
[TimeControl "180+1"]
[EndTime "14:19:50 PDT"]
[Termination "Game drawn by repetition"]

1. d4 {[%clk 0:03:00.9]} 1... Nf6 {[%clk 0:02:57.4]} 2. c4 {[%clk 0:02:58.6]}
2... g6 {[%clk 0:02:55.4]} 3. h4 {[%clk 0:02:58.5]} 3... h5 {[%clk 0:02:51.8]}
4. Nc3 {[%clk 0:02:53.6]} 4... Bg7 {[%clk 0:02:51.5]} 5. e4 {[%clk 0:02:49.7]}
5... d6 {[%clk 0:02:52]} 6. Bg5 {[%clk 0:02:47.4]} 6... O-O {[%clk 0:02:49.9]}
7. Qd2 {[%clk 0:02:40.1]} 7... Re8 {[%clk 0:02:43.8]} 8. O-O-O {[%clk
0:02:30.7]} 8... Nbd7 {[%clk 0:02:31.9]} 9. f3 {[%clk 0:02:28.1]} 9... e5 {[%clk
0:02:10.2]} 10. Nge2 {[%clk 0:02:07.9]} 10... exd4 {[%clk 0:02:09.5]} 11. Nxd4
{[%clk 0:02:07.3]} 11... Nc5 {[%clk 0:02:08.5]} 12. Qf4 {[%clk 0:01:52]} 12...
Ne6 {[%clk 0:01:57]} 13. Nxe6 {[%clk 0:01:42.4]} 13... Bxe6 {[%clk 0:01:57.9]}
14. e5 {[%clk 0:01:24.8]} 14... dxe5 {[%clk 0:01:56.9]} 15. Qxe5 {[%clk
0:01:23.9]} 15... Nd7 {[%clk 0:01:43.9]} 16. Qf4 {[%clk 0:01:10.6]} 16... f6
{[%clk 0:01:06.3]} 17. Bh6 {[%clk 0:01:09.5]} 17... Qe7 {[%clk 0:01:04.9]} 18.
Bxg7 {[%clk 0:00:53.2]} 18... Qxg7 {[%clk 0:01:03.4]} 19. Qxc7 {[%clk
0:00:50.7]} 19... Ne5 {[%clk 0:00:55.6]} 20. Nd5 {[%clk 0:00:41.2]} 20... Rac8
{[%clk 0:00:46.1]} 21. Qxg7+ {[%clk 0:00:35]} 21... Kxg7 {[%clk 0:00:45.3]} 22.
Kb1 {[%clk 0:00:22.8]} 22... Nxc4 {[%clk 0:00:42.6]} 23. Nf4 {[%clk 0:00:22]}
23... Ne5 {[%clk 0:00:35.6]} 24. Nxe6+ {[%clk 0:00:20.5]} 24... Rxe6 {[%clk
0:00:35]} 25. Bb5 {[%clk 0:00:19.8]} 25... Re7 {[%clk 0:00:30.7]} 26. Rhe1
{[%clk 0:00:18]} 26... Rcc7 {[%clk 0:00:26.1]} 27. Rd8 {[%clk 0:00:16.7]} 27...
a6 {[%clk 0:00:24.6]} 28. Ba4 {[%clk 0:00:16.7]} 28... b5 {[%clk 0:00:20.3]} 29.
Bb3 {[%clk 0:00:16.8]} 29... Nc4 {[%clk 0:00:19.5]} 30. Red1 {[%clk 0:00:15.6]}
30... f5 {[%clk 0:00:18.2]} 31. a4 {[%clk 0:00:10.2]} 31... Rb7 {[%clk
0:00:16.7]} 32. axb5 {[%clk 0:00:09.8]} 32... axb5 {[%clk 0:00:16]} 33. R8d4
{[%clk 0:00:08.8]} 33... Rec7 {[%clk 0:00:15.4]} 34. Bxc4 {[%clk 0:00:08.3]}
34... bxc4 {[%clk 0:00:15.2]} 35. Kc2 {[%clk 0:00:08.6]} 35... Rb6 {[%clk
0:00:14.6]} 36. Ra1 {[%clk 0:00:08.8]} 36... Rbc6 {[%clk 0:00:14.6]} 37. Ra3
{[%clk 0:00:09]} 37... Kf6 {[%clk 0:00:13.5]} 38. Rc3 {[%clk 0:00:09.3]} 38...
Ke5 {[%clk 0:00:13.6]} 39. Rd2 {[%clk 0:00:08.5]} 39... Rc5 {[%clk 0:00:13.3]}
40. Kd1 {[%clk 0:00:08]} 40... R7c6 {[%clk 0:00:13.3]} 41. g3 {[%clk 0:00:08]}
41... f4 {[%clk 0:00:12]} 42. gxf4+ {[%clk 0:00:07.4]} 42... Kxf4 {[%clk
0:00:12.2]} 43. Rd4+ {[%clk 0:00:08]} 43... Ke5 {[%clk 0:00:11.2]} 44. Re4+
{[%clk 0:00:07.7]} 44... Kf5 {[%clk 0:00:11]} 45. Ke2 {[%clk 0:00:08.2]} 45...
Rc7 {[%clk 0:00:07.6]} 46. Ke3 {[%clk 0:00:08.5]} 46... Rb7 {[%clk 0:00:07.7]}
47. Rf4+ {[%clk 0:00:08.3]} 47... Ke5 {[%clk 0:00:07.7]} 48. Re4+ {[%clk
0:00:08.9]} 48... Kf5 {[%clk 0:00:08]} 49. Rexc4 {[%clk 0:00:08.7]} 49... Rxc4
{[%clk 0:00:08.1]} 50. Rxc4 {[%clk 0:00:09.6]} 50... Rxb2 {[%clk 0:00:08.4]} 51.
Rc5+ {[%clk 0:00:10.2]} 51... Kf6 {[%clk 0:00:08.7]} 52. Kf4 {[%clk 0:00:09.8]}
52... Rb4+ {[%clk 0:00:08.6]} 53. Kg3 {[%clk 0:00:10.2]} 53... Ke6 {[%clk
0:00:08.5]} 54. Rg5 {[%clk 0:00:09.4]} 54... Kf6 {[%clk 0:00:08.9]} 55. Rc5
{[%clk 0:00:09.6]} 55... Rd4 {[%clk 0:00:08.9]} 56. Kh3 {[%clk 0:00:07.4]} 56...
Ra4 {[%clk 0:00:08.8]} 57. Kg3 {[%clk 0:00:07.7]} 57... Rd4 {[%clk 0:00:08.9]}
58. f4 {[%clk 0:00:06.9]} 58... Ra4 {[%clk 0:00:08.9]} 59. Kf3 {[%clk
0:00:07.3]} 59... Ra3+ {[%clk 0:00:09.3]} 60. Ke4 {[%clk 0:00:07.7]} 60... Ra4+
{[%clk 0:00:09.8]} 61. Ke3 {[%clk 0:00:07.6]} 61... Ra3+ {[%clk 0:00:10.4]} 62.
Kd4 {[%clk 0:00:08.1]} 62... Ra4+ {[%clk 0:00:10.9]} 63. Ke3 {[%clk 0:00:08.5]}
63... Ra3+ {[%clk 0:00:11.3]} 64. Ke4 {[%clk 0:00:09.1]} 64... Ra4+ {[%clk
0:00:11.7]} 65. Kf3 {[%clk 0:00:09.2]} 65... Ra3+ {[%clk 0:00:12.1]} 66. Ke2
{[%clk 0:00:08.8]} 66... Ra2+ {[%clk 0:00:12.5]} 67. Ke3 {[%clk 0:00:09.1]}
67... Ra3+ {[%clk 0:00:12.8]} 1/2-1/2